fUSD/lending_fUSD_20240625
["ID","MTS","AMOUNT","RATE_DAILY","PERIOD"]
[330387307,1719340242032,-3326.37,0.00019178,2]
[330387308,1719340242041,-500.0,0.00019178,2]
[330387309,1719340242051,-500.0,0.00019178,2]
[330387310,1719340242060,-1488.29,0.00019178,2]
[330387311,1719340242069,-500.0,0.00019178,2]
[330387312,1719340242079,-500.0,0.00019178,2]
[330387313,1719340242090,-500.0,0.00019178,2]
[330387314,1719340242099,-2092.9,0.00019178,2]
[330387315,1719340242109,-3752.98,0.00019178,2]
[330387316,1719340242118,-1465.8,0.00019178,2]
[330387317,1719340242128,-500.0,0.00019178,2]
[330387318,1719340242137,-500.0,0.00019178,2]
[330387319,1719340242147,-500.0,0.00019178,2]
[330387320,1719340242156,-1008.24,0.00019178,2]
[330387321,1719340242165,-824.24,0.00019178,2]
[330387322,1719340242176,-849.12,0.00019178,2]
[330387323,1719340242185,-2390.13,0.00019178,2]
[330387324,1719340242195,-947.04,0.00019178,2]
[330387325,1719340242205,-1098.0,0.00019178,2]
[330387326,1719340242215,-500.0,0.00019178,2]
[330387327,1719340242225,-500.0,0.00019178,2]
[330387328,1719340242235,-743.88,0.00019178,2]
[330387329,1719340242244,-1347.92,0.00019178,2]
[330387330,1719340242254,-500.0,0.00019178,2]
[330387331,1719340242264,-500.0,0.00019178,2]
[330387332,1719340242273,-500.0,0.00019178,2]
[330387333,1719340242283,-500.0,0.00019178,2]
[330387334,1719340242293,-1671.58,0.00019178,2]
[330387335,1719340242302,-1791.79,0.00019178,2]
[330387336,1719340242311,-1488.54,0.00019178,2]
[330387337,1719340242321,-631.32,0.00019178,2]
[330387338,1719340242330,-862.96,0.00019178,2]
[330387339,1719340242340,-2045.06,0.00019178,2]
[330387340,1719340242350,-500.0,0.00019178,2]
[330387341,1719340242359,-2856.64,0.00019178,2]
[330387342,1719340242369,-500.0,0.00019178,2]
[330387343,1719340242378,-1371.49,0.00019178,2]
[330387344,1719340242388,-500.0,0.00019178,2]
[330387345,1719340242397,-3199.1,0.00019178,2]
[330387346,1719340242407,-712.39,0.00019178,2]
[330387347,1719340242416,-500.0,0.00019178,2]
[330387348,1719340242427,-699.43,0.00019178,2]
[330387349,1719340242437,-500.0,0.00019178,2]
[330387350,1719340242446,-500.0,0.00019178,2]
[330387351,1719340242455,-7340.48,0.00019178,2]
[330387352,1719340242464,-626.1,0.00019178,2]
[330387353,1719340242474,-1187.3,0.00019178,2]
[330387354,1719340242484,-500.0,0.00019178,2]
[330387355,1719340242493,-540.4,0.00019178,2]
[330387356,1719340242502,-556.85,0.00019178,2]
[330387357,1719340242512,-666.67,0.00019178,2]
[330387358,1719340242522,-500.0,0.00019178,2]
[330387359,1719340242531,-500.0,0.00019178,2]
[330387360,1719340242542,-1377.31,0.00019178,2]
[330387361,1719340242551,-500.0,0.00019178,2]
[330387362,1719340242561,-500.0,0.00019178,2]
[330387363,1719340242571,-1335.11,0.00019178,2]
[330387364,1719340242581,-500.0,0.00019178,2]
[330387365,1719340242591,-2070.81,0.00019178,2]
[330387366,1719340242600,-500.0,0.00019178,2]
[330387367,1719340242610,-500.0,0.00019178,2]
[330387368,1719340242620,-857.75,0.00019178,2]
[330387369,1719340242630,-500.0,0.00019178,2]
[330387370,1719340242639,-500.0,0.00019178,2]
[330387371,1719340242649,-1013.64,0.00019178,2]
[330387372,1719340242659,-627.17,0.00019178,2]
[330387373,1719340242669,-500.0,0.00019178,2]
[330387374,1719340242679,-500.0,0.00019178,2]
[330387375,1719340242689,-1873.07,0.00019178,2]
[330387376,1719340242699,-3569.16,0.00019178,2]
[330387377,1719340242709,-1046.02,0.00019178,2]
[330387378,1719340242720,-500.0,0.00019178,2]
[330387379,1719340242730,-1472.18,0.00019178,2]
[330387380,1719340242740,-687.62,0.00019178,2]
[330387381,1719340242750,-500.0,0.00019178,2]
[330387382,1719340242760,-758.55,0.00019178,2]
[330387383,1719340242770,-500.0,0.00019178,2]
[330387384,1719340242780,-1126.63,0.00019178,2]
[330387385,1719340242789,-500.0,0.00019178,2]
[330387386,1719340242799,-500.0,0.00019178,2]
[330387387,1719340242809,-513.21,0.00019178,2]
[330387388,1719340242819,-500.0,0.00019178,2]
[330387389,1719340242828,-903.61,0.00019178,2]
[330387390,1719340242838,-500.0,0.00019178,2]
[330387391,1719340242847,-2554.62,0.00019178,2]
[330387392,1719340242857,-971.81,0.00019178,2]
[330387393,1719340242867,-1012.25,0.00019178,2]
[330387394,1719340242877,-500.0,0.00019178,2]
[330387395,1719340242887,-919.47,0.00019178,2]
[330387396,1719340242897,-500.0,0.00019178,2]
[330387397,1719340242908,-500.0,0.00019178,2]
[330387399,1719340242923,-500.0,0.00019178,2]
[330387401,1719340242933,-500.0,0.00019178,2]
[330387403,1719340242943,-1185.07,0.00019178,2]
[330387405,1719340242955,-500.0,0.00019178,2]
[330387407,1719340242964,-618.77,0.00019178,2]
[330387409,1719340242974,-2011.78,0.00019178,2]
[330387410,1719340242983,-694.8,0.00019178,2]
[330387411,1719340242995,-5512.33,0.00019178,2]
[330387412,1719340243004,-996.41,0.00019178,2]
[330387413,1719340243014,-500.0,0.00019178,2]
[330387414,1719340243024,-585.72,0.00019178,2]
[330387415,1719340243034,-887.12,0.00019178,2]
[330387416,1719340243044,-500.0,0.00019178,2]
[330387417,1719340243053,-500.0,0.00019178,2]
[330387418,1719340243063,-1720.88,0.00019178,2]
[330387419,1719340243072,-1025.98,0.00019178,2]
[330387420,1719340243081,-785.5,0.00019178,2]
[330387421,1719340243091,-1932.41,0.00019178,2]
[330387422,1719340243101,-882.41,0.00019178,2]
[330387423,1719340243111,-929.96,0.00019178,2]
[330387424,1719340243121,-500.0,0.00019178,2]
[330387425,1719340243131,-769.94,0.00019178,2]
[330387426,1719340243141,-500.0,0.00019178,2]
[330387427,1719340243150,-1202.97,0.00019178,2]
[330387428,1719340243160,-500.0,0.00019178,2]
[330387431,1719340243169,-500.0,0.00019178,2]
[330387433,1719340243186,-500.0,0.00019178,2]
[330387434,1719340243195,-500.0,0.00019178,2]
[330387435,1719340243209,-4456.27,0.00019178,2]
[330387436,1719340243219,-500.0,0.00019178,2]
[330387438,1719340243229,-500.0,0.00019178,2]
[330387440,1719340243239,-697.4,0.00019178,2]
[330387442,1719340243248,-25904.14,0.00019178,2]
[330387443,1719340243257,-2499.76,0.00019178,2]
[330387445,1719340243268,-883.77,0.00019178,2]
[330387447,1719340243278,-500.0,0.00019178,2]
[330387449,1719340243288,-500.0,0.00019178,2]
[330387451,1719340243298,-578.36,0.00019178,2]
[330387453,1719340243308,-2083.05,0.00019178,2]
[330387455,1719340243318,-703.82,0.00019178,2]
[330387456,1719340243327,-508.93,0.00019178,2]
[330387457,1719340243337,-500.0,0.00019178,2]
[330387458,1719340243347,-500.0,0.00019178,2]
[330387459,1719340243357,-500.0,0.00019178,2]
[330387460,1719340243367,-1131.02,0.00019178,2]
[330387461,1719340243376,-2065.74,0.00019178,2]
[330387462,1719340243386,-744.7,0.00019178,2]
[330387463,1719340243395,-500.0,0.00019178,2]
[330387468,1719340243777,-672.95,0.00019178,2]
[330387469,1719340243787,-1213.18,0.00019178,2]
[330387470,1719340243796,-500.0,0.00019178,2]
[330387471,1719340243806,-474.27419342,0.00019178,2]
[330387472,1719340243816,-500.0,0.00019178,2]
[330387473,1719340243826,-500.0,0.00019178,2]
[330387474,1719340243836,-500.0,0.00019178,2]
[330387475,1719340243846,-500.0,0.00019178,2]
[330387476,1719340243856,-522.41,0.00019178,2]
[330387477,1719340243866,-3202.0,0.00019178,2]
[330387478,1719340243876,-2893.94,0.00019178,2]
[330387479,1719340243885,-1285.24,0.00019178,2]
[330387480,1719340243895,-1572.67,0.00019178,2]
[330387481,1719340243906,-500.0,0.00019178,2]
[330387482,1719340243922,-500.0,0.00019178,2]
[330387483,1719340243932,-674.07,0.00019178,2]
[330387484,1719340243942,-500.0,0.00019178,2]
[330387485,1719340243953,-1411.78,0.00019178,2]
[330387486,1719340243963,-500.0,0.00019178,2]
[330387487,1719340243973,-1114.02,0.00019178,2]
[330387488,1719340243984,-1759.66,0.00019178,2]
[330387489,1719340243995,-1105.19,0.00019178,2]
[330387490,1719340244005,-500.0,0.00019178,2]
[330387491,1719340244015,-1490.36,0.00019178,2]
[330387492,1719340244024,-500.0,0.00019178,2]
[330387493,1719340244034,-500.0,0.00019178,2]
[330387494,1719340244044,-1265.48,0.00019178,2]
[330387495,1719340244055,-500.0,0.00019178,2]
[330387496,1719340244065,-500.0,0.00019178,2]
[330387497,1719340244074,-500.0,0.00019178,2]
[330387498,1719340244084,-15397.45280985,0.00019178,2]
[330387503,1719340244147,-295.44814184,0.00019178,2]
[330387506,1719340244160,-275.7083469,0.00019178,2]
[330387519,1719340246092,-8542.83070141,0.00019178,2]
[330387520,1719340246102,-702.79,0.00019178,2]
[330387521,1719340246111,-1256.17,0.00019178,2]
[330387522,1719340246121,-500.0,0.00019178,2]
[330387523,1719340246130,-229.26577155,0.00019178,2]
[330387524,1719340246139,-500.0,0.00019178,2]
[330387525,1719340246149,-500.0,0.00019178,2]
[330387526,1719340246158,-784.01,0.00019178,2]
[330387527,1719340246167,-500.0,0.00019178,2]
[330387528,1719340246181,-500.0,0.00019178,2]
[330387529,1719340246190,-500.0,0.00019178,2]
[330387530,1719340246200,-500.0,0.00019178,2]
[330387531,1719340246213,-500.0,0.00019178,2]
[330387532,1719340246225,-534.47,0.00019178,2]
[330387533,1719340246236,-2389.16,0.00019178,2]
[330387534,1719340246245,-500.0,0.00019178,2]
[330387535,1719340246254,-500.0,0.00019178,2]
[330387536,1719340246263,-500.0,0.00019178,2]
[330387537,1719340246271,-1080.88,0.00019178,2]
[330387538,1719340246280,-1944.53,0.00019178,2]
[330387539,1719340246289,-500.0,0.00019178,2]
[330387540,1719340246298,-500.0,0.00019178,2]
[330387541,1719340246307,-751.39184704,0.00019178,2]
[330387542,1719340246319,-2578.26443151,0.00019178,2]
[330387543,1719340246331,-326.355,0.00019178,2]
[330387544,1719340246343,-8295.40586116,0.00019178,2]
[330387545,1719340246355,-11241.57286029,0.00019178,2]
[330387546,1719340246365,-2800.34,0.00019178,2]
[330387547,1719340246374,-568.76,0.00019178,2]
[330387548,1719340246383,-500.0,0.00019178,2]
[330387549,1719340246392,-1627.19,0.00019178,2]
[330387550,1719340246402,-500.0,0.00019178,2]
[330387551,1719340246411,-500.0,0.00019178,2]
[330387552,1719340246424,-500.0,0.00019178,2]
[330387553,1719340246433,-653.19,0.00019178,2]
[330387554,1719340246441,-685.66,0.00019178,2]
[330387555,1719340246452,-500.0,0.00019178,2]
[330387556,1719340246462,-1508.13,0.00019178,2]
[330387557,1719340246472,-1303.13,0.00019178,2]
[330387558,1719340246482,-1073.39,0.00019178,2]
[330387559,1719340246491,-500.0,0.00019178,2]
[330387560,1719340246501,-500.0,0.00019178,2]
[330387561,1719340246511,-500.0,0.00019178,2]
[330387562,1719340246520,-500.0,0.00019178,2]
[330387563,1719340246530,-1633.48,0.00019178,2]
[330387564,1719340246540,-500.0,0.00019178,2]
[330387565,1719340246550,-1138.65,0.00019178,2]
[330387566,1719340246559,-515.44,0.00019178,2]
[330387567,1719340246568,-500.0,0.00019178,2]
[330387568,1719340246578,-500.0,0.00019178,2]
[330387569,1719340246588,-694.99,0.00019178,2]
[330387570,1719340246597,-519.33263449,0.00019178,2]
[330387571,1719340246606,-1557.13,0.00019178,2]
[330387572,1719340246615,-3353.54470922,0.00019178,2]
[330387573,1719340246627,-2788.35529078,0.00019178,2]
[330387574,1719340246636,-3756.86,0.00019178,2]
[330387575,1719340246645,-1340.36362028,0.00019178,2]
[330387576,1719340247026,-497.77637972,0.00019178,2]
[330387577,1719340247035,-500.0,0.00019178,2]
[330387578,1719340247044,-500.0,0.00019178,2]
[330387579,1719340247054,-3281.52,0.00019178,2]
[330387580,1719340247064,-500.0,0.00019178,2]
[330387581,1719340247073,-500.0,0.00019178,2]
[330387582,1719340247082,-500.0,0.00019178,2]
[330387583,1719340247091,-200.0,0.00019178,2]
[330387584,1719340247100,-1460.51,0.00019178,2]
[330387585,1719340247109,-500.0,0.00019178,2]
[330387586,1719340247118,-7867.52,0.00019178,2]
[330387587,1719340247127,-500.0,0.00019178,2]
[330387588,1719340247136,-500.0,0.00019178,2]
[330387589,1719340247146,-8025.89,0.00019178,2]
[330387590,1719340247156,-500.0,0.00019178,2]
[330387591,1719340247165,-500.0,0.00019178,2]
[330387592,1719340247175,-500.0,0.00019178,2]
[330387593,1719340247184,-2798.25,0.00019178,2]
[330387594,1719340247193,-1494.6,0.00019178,2]
[330387595,1719340247202,-722.54704148,0.00019178,2]
[330387596,1719340247215,-963.40295852,0.00019178,2]
[330387597,1719340247225,-214.16515906,0.00019178,2]
[330387598,1719340247236,-439.38484094,0.00019178,2]
[330387599,1719340247246,-180.16482715,0.00019178,2]
[330387600,1719340247257,-630.79517285,0.00019178,2]
[330387601,1719340247266,-298.28482706,0.00019178,2]
[330387602,1719340247282,-203.63057689,0.00019178,2]
[330387603,1719340247291,-500.0,0.00019178,2]
[330387604,1719340247300,-1424.58,0.00019178,2]
[330387605,1719340247310,-500.0,0.00019178,2]
[330387606,1719340247319,-71.78942311,0.00019178,2]
[330387607,1719340247643,-385.90892267,0.00019078,2]
[330387608,1719340247655,-614.09107733,0.00019078,2]
[330387609,1719340247664,-364.844001,0.00019162,2]
[330387610,1719340247673,-702.28057689,0.00019178,2]
[330387611,1719340247682,-500.0,0.00019178,2]
[330387612,1719340247692,-500.0,0.00019178,2]
[330387613,1719340247701,-500.0,0.00019178,2]
[330387614,1719340247711,-8324.81,0.00019178,2]
[330387615,1719340247720,-516.61,0.00019178,2]
[330387616,1719340247730,-725.91,0.00019178,2]
[330387617,1719340247739,-538.85,0.00019178,2]
[330387618,1719340247749,-500.0,0.00019178,2]
[330387619,1719340247759,-10736.38048564,0.00019178,2]
[330387620,1719340247771,-7390.77854693,0.00019178,2]
[330387621,1719340247782,-1268.9320564,0.00019178,2]
[330387622,1719340248869,-5431.07891103,0.00019178,2]
[330387623,1719340248878,-500.0,0.00019178,2]
[330387624,1719340248888,-500.0,0.00019178,2]
[330387625,1719340248897,-849.79,0.00019178,2]
[330387626,1719340248907,-500.0,0.00019178,2]
[330387627,1719340248920,-500.0,0.00019178,2]
[330387628,1719340248931,-500.0,0.00019178,2]
[330387629,1719340248940,-6991.47,0.00019178,2]
[330387630,1719340248949,-2022.48427363,0.00019178,2]
[330387631,1719340248962,-844.65572637,0.00019178,2]
[330387632,1719340248971,-500.0,0.00019178,2]
[330387633,1719340248980,-1203.67,0.00019178,2]
[330387634,1719340248990,-500.0,0.00019178,2]
[330387635,1719340249002,-53.37221612,0.00019178,2]
[330387636,1719340249014,-293.7897066,0.00019178,2]
[330387637,1719340249028,-1221.04577274,0.00019178,2]
[330387638,1719340249039,-1203.63230454,0.00019178,2]
[330387639,1719340249048,-500.0,0.00019178,2]
[330387640,1719340249057,-4119.56273615,0.00019178,2]
[330387641,1719340249085,-235.10726385,0.00019178,2]
[330387642,1719340249093,-574.58218615,0.00019178,2]
[330387643,1719340249104,-327.90127895,0.00019178,2]
[330387644,1719340249115,-113.2365349,0.00019178,2]
[330387645,1719340249124,-500.0,0.00019178,2]
[330387646,1719340249134,-15667.53,0.00019178,2]
[330387647,1719340249143,-500.0,0.00019178,2]
[330387648,1719340249152,-500.0,0.00019178,2]
[330387649,1719340249161,-500.0,0.00019178,2]
[330387650,1719340249171,-2285.75,0.00019178,2]
[330387651,1719340249182,-500.0,0.00019178,2]
[330387652,1719340249191,-500.0,0.00019178,2]
[330387653,1719340249200,-661.2,0.00019178,2]
[330387654,1719340249210,-1916.79,0.00019178,2]
[330387655,1719340249219,-438.94861419,0.00019178,2]
[330387656,1719340249231,-352.10138581,0.00019178,2]
[330387657,1719340249240,-500.0,0.00019178,2]
[330387658,1719340249249,-500.0,0.00019178,2]
[330387659,1719340249259,-500.0,0.00019178,2]
[330387660,1719340249268,-500.0,0.00019178,2]
[330387661,1719340249277,-587.42978824,0.00019178,2]
[330387662,1719340249287,-2344.83,0.00019178,2]
[330387663,1719340249296,-2418.92,0.00019178,2]
[330387664,1719340249306,-1563.52,0.00019178,2]
[330387665,1719340249316,-174.07305076,0.00019178,2]
[330387666,1719340249325,-500.0,0.00019178,2]
[330387667,1719340249334,-500.0,0.00019178,2]
[330387668,1719340249344,-500.0,0.00019178,2]
[330387669,1719340249353,-500.0,0.00019178,2]
[330387670,1719340249362,-500.0,0.00019178,2]
[330387671,1719340249372,-959.13,0.00019178,2]
[330387672,1719340249382,-715.52,0.00019178,2]
[330387673,1719340249391,-531.7264134,0.00019178,2]
[330387674,1719340249404,-3615.86608181,0.00019178,2]
[330387675,1719340249416,-20895.10750479,0.00019178,2]
[330387676,1719340249425,-500.0,0.00019178,2]
[330387677,1719340249439,-365.89120966,0.00019178,2]
[330387678,1719340249451,-134.10879034,0.00019178,2]
[330387679,1719340249460,-153.22675268,0.00019178,2]
[330387680,1719340249472,-7969.13324732,0.00019178,2]
[330387681,1719340249483,-500.0,0.00019178,2]
[330387682,1719340249492,-631.8,0.00019178,2]
[330387683,1719340249501,-500.0,0.00019178,2]
[330387684,1719340249511,-500.0,0.00019178,2]
[330387685,1719340249521,-632.95,0.00019178,2]
[330387686,1719340249530,-518.36,0.00019178,2]
[330387687,1719340249540,-694.88,0.00019178,2]
[330387688,1719340249549,-892.65,0.00019178,2]
[330387689,1719340249559,-918.54,0.00019178,2]
[330387690,1719340249569,-500.0,0.00019178,2]
[330387691,1719340249579,-1643.0,0.00019178,2]
[330387692,1719340249588,-1591.06,0.00019178,2]
[330387693,1719340249596,-770.86,0.00019178,2]
[330387694,1719340249606,-500.0,0.00019178,2]
[330387695,1719340249615,-711.79,0.00019178,2]
[330387696,1719340249624,-500.0,0.00019178,2]
[330387697,1719340249633,-500.0,0.00019178,2]
[330387698,1719340249642,-4489.87,0.00019178,2]
[330387699,1719340249798,-500.0,0.00019178,2]
[330387700,1719340249808,-500.0,0.00019178,2]
[330387701,1719340249817,-500.0,0.00019178,2]
[330387702,1719340249826,-820.82,0.00019178,2]
[330387703,1719340249836,-500.0,0.00019178,2]
[330387704,1719340249845,-500.0,0.00019178,2]
[330387705,1719340249855,-500.0,0.00019178,2]
[330387706,1719340249864,-500.0,0.00019178,2]
[330387707,1719340249874,-890.62,0.00019178,2]
[330387708,1719340249883,-2391.73,0.00019178,2]
[330387709,1719340249893,-500.0,0.00019178,2]
[330387710,1719340249902,-1488.98,0.00019178,2]
[330387711,1719340249916,-2015.46,0.00019178,2]
[330387712,1719340249928,-851.02,0.00019178,2]
[330387713,1719340249937,-500.0,0.00019178,2]
[330387714,1719340249947,-2462.48,0.00019178,2]
[330387715,1719340249959,-500.0,0.00019178,2]
[330387716,1719340249968,-539.04,0.00019178,2]
[330387717,1719340249977,-500.0,0.00019178,2]
[330387718,1719340249986,-2237.56,0.00019178,2]
[330387719,1719340249996,-1597.8,0.00019178,2]
[330387720,1719340250006,-947.78,0.00019178,2]
[330387721,1719340250015,-677.76,0.00019178,2]
[330387722,1719340250024,-935.03,0.00019178,2]
[330387723,1719340250034,-500.39,0.00019178,2]
[330387724,1719340250044,-500.0,0.00019178,2]
[330387725,1719340250053,-1308.81,0.00019178,2]
[330387726,1719340250063,-3074.18,0.00019178,2]
[330387727,1719340250073,-500.0,0.00019178,2]
[330387728,1719340250084,-6541.08,0.00019178,2]
[330387729,1719340250094,-500.0,0.00019178,2]
[330387730,1719340250103,-1002.75,0.00019178,2]
[330387731,1719340250113,-818.37,0.00019178,2]
[330387732,1719340250123,-500.0,0.00019178,2]
[330387733,1719340250133,-500.0,0.00019178,2]
[330387734,1719340250142,-500.0,0.00019178,2]
[330387735,1719340250152,-512.4,0.00019178,2]
[330387736,1719340250161,-500.0,0.00019178,2]
[330387737,1719340250171,-581.21,0.00019178,2]
[330387738,1719340250181,-761.03,0.00019178,2]
[330387739,1719340250190,-3676.54,0.00019178,2]
[330387740,1719340250199,-1189.35,0.00019178,2]
[330387741,1719340250211,-1406.39,0.00019178,2]
[330387742,1719340250221,-1544.6,0.00019178,2]
[330387743,1719340250230,-1905.55,0.00019178,2]
[330387744,1719340250239,-500.0,0.00019178,2]
[330387745,1719340250249,-500.0,0.00019178,2]
[330387746,1719340250259,-500.0,0.00019178,2]
[330387747,1719340250268,-1595.96,0.00019178,2]
[330387748,1719340250277,-500.16,0.00019178,2]
[330387749,1719340250287,-500.0,0.00019178,2]
[330387750,1719340250296,-605.37192217,0.00019178,2]
[330387751,1719340250306,-1232.92,0.00019178,2]
[330387752,1719340250315,-500.0,0.00019178,2]
[330387753,1719340250324,-500.0,0.00019178,2]
[330387754,1719340250333,-2309.94,0.00019178,2]
[330387755,1719340250342,-500.0,0.00019178,2]
[330387756,1719340250352,-3451.34,0.00019178,2]
[330387757,1719340250361,-10880.38,0.00019178,2]
[330387758,1719340250370,-500.0,0.00019178,2]
[330387759,1719340250380,-1505.56,0.00019178,2]
[330387760,1719340250389,-500.0,0.00019178,2]
[330387761,1719340250399,-500.0,0.00019178,2]
[330387762,1719340250409,-1423.23,0.00019178,2]
[330387763,1719340250418,-1020.68,0.00019178,2]
[330387764,1719340250427,-7281.98,0.00019178,2]
[330387765,1719340250437,-500.0,0.00019178,2]
[330387766,1719340250446,-1173.36,0.00019178,2]
[330387767,1719340250456,-641.68,0.00019178,2]
[330387768,1719340250465,-833.67,0.00019178,2]
[330387769,1719340250475,-1125.56,0.00019178,2]
[330387770,1719340250484,-500.0,0.00019178,2]
[330387771,1719340250494,-11404.81,0.00019178,2]
[330387772,1719340250503,-500.0,0.00019178,2]
[330387773,1719340250513,-500.0,0.00019178,2]
[330387774,1719340250523,-731.62,0.00019178,2]
[330387775,1719340250532,-500.0,0.00019178,2]
[330387776,1719340250541,-570.48482419,0.00019178,2]
[330387777,1719340250551,-5225.38,0.00019178,2]
[330387778,1719340250560,-717.54,0.00019178,2]
[330387779,1719340250570,-563.21037344,0.00019178,2]
[330387780,1719340250580,-2927.07,0.00019178,2]
[330387781,1719340250589,-885.86,0.00019178,2]
[330387782,1719340250598,-500.0,0.00019178,2]
[330387783,1719340250608,-2759.56,0.00019178,2]
[330387784,1719340250618,-525.78,0.00019178,2]
[330387785,1719340250627,-1452.5,0.00019178,2]
[330387786,1719340250636,-500.0,0.00019178,2]
[330387787,1719340250646,-606.28,0.00019178,2]
[330387788,1719340250656,-15888.95,0.00019178,2]
[330387789,1719340250665,-188.08852155,0.00019178,2]
[330387790,1719340250677,-1668.34,0.00019178,2]
[330387791,1719340250686,-1443.77,0.00019178,2]
[330387792,1719340250696,-500.0,0.00019178,2]
[330387793,1719340250706,-1357.05,0.00019178,2]
[330387794,1719340250715,-500.0,0.00019178,2]
[330387795,1719340250724,-500.0,0.00019178,2]
[330387796,1719340250735,-1195.77,0.00019178,2]
[330387797,1719340250744,-10761.21,0.00019178,2]
[330387798,1719340250754,-638.31,0.00019178,2]
[330387799,1719340250763,-500.0,0.00019178,2]
[330387800,1719340250772,-500.0,0.00019178,2]
[330387801,1719340250782,-1316.97,0.00019178,2]
[330387802,1719340250791,-535.58,0.00019178,2]
[330387803,1719340250801,-500.0,0.00019178,2]
[330387804,1719340250810,-500.0,0.00019178,2]
[330387805,1719340250820,-586.32,0.00019178,2]
[330387806,1719340250830,-295.6759281,0.00019178,2]
[330387807,1719340250839,-565.39,0.00019178,2]
[330387808,1719340250848,-651.78,0.00019178,2]
[330387809,1719340250858,-546.09,0.00019178,2]
[330387810,1719340250867,-530.44,0.00019178,2]
[330387811,1719340250876,-500.0,0.00019178,2]
[330387812,1719340250886,-913.64,0.00019178,2]
[330387813,1719340250896,-500.0,0.00019178,2]
[330387814,1719340250906,-6388.26,0.00019178,2]
[330387815,1719340250920,-1042.01,0.00019178,2]
[330387816,1719340250931,-15635.42,0.00019178,2]
[330387817,1719340250940,-500.0,0.00019178,2]
[330387818,1719340250950,-2127.79,0.00019178,2]
[330387819,1719340250961,-250.0,0.00019178,2]
[330387820,1719340250971,-181.04384057,0.00019215,2]
[330387821,1719340250980,-1000.0,0.00019237,2]
[330387822,1719340250990,-2279.74836185,0.00019296,2]
[330387823,1719340251001,-330.63323036,0.00019296,2]
[330387824,1719340251011,-500.0,0.00019296,2]
[330387825,1719340251020,-171.84216993,0.00019352,2]
[330387826,1719340251029,-181.04384057,0.00019352,2]
[330387827,1719340251038,-659.86897458,0.00019352,2]
[330387828,1719340251047,-185.69737488,0.00019359,2]
[330387829,1719340251057,-186.52661499,0.00019441,2]
[330387830,1719340251067,-155.0,0.00019441,2]
[330387831,1719340251076,-3034.65,0.00019451,2]
[330387832,1719340251086,-2238.64,0.00019451,2]
[330387833,1719340251096,-2440.52,0.00019451,2]
[330387834,1719340251106,-785.78,0.00019451,2]
[330387835,1719340251115,-1095.9,0.00019451,2]
[330387836,1719340251125,-4261.61,0.00019451,2]
[330387837,1719340251135,-873.13,0.00019451,2]
[330387838,1719340251145,-3758.66,0.00019451,2]
[330387839,1719340251156,-5348.68,0.00019451,2]
[330387840,1719340251167,-5329.98,0.00019451,2]
[330387841,1719340251177,-500.0,0.00019452,2]
[330387842,1719340251187,-200.0,0.00019452,2]
[330387843,1719340251197,-500.0,0.00019452,2]
[330387844,1719340251208,-500.0,0.00019452,2]
[330387845,1719340251218,-500.0,0.00019452,2]
[330387846,1719340251228,-500.0,0.00019452,2]